bitfinex-derivatives/quotes_ETHF0:USTF0_20260120
["timestamp","ask_amount","ask_price","bid_price","bid_amount"]
[1768890305262,2.89398667,3141.7,3140.1,0.00345685]
[1768890305571,1.02248318,3141.6,3140.1,0.00345685]
[1768890305766,0.86317318,3141.5,3140.1,0.00345685]
[1768890305963,0.86317318,3141.4,3140.1,0.00345685]
[1768890306164,0.15931,3141.6,3140.1,0.00345685]
[1768890306576,0.15931,3141.6,3140.1,3.58281146]
[1768890307170,0.00275942,3141.9,3140.2,3.57935461]
[1768890307365,0.15927,3142.4,3140.4,3.57935461]
[1768890307873,0.15928,3142.3,3140.4,3.57935461]
[1768890308070,0.15928,3142.3,3140.5,4.07874586]
[1768890308287,0.16169551,3142.3,3140.6,3.57935461]
[1768890308471,0.16169551,3142.3,3140.8,3.57935461]
[1768890308973,0.00241551,3142.3,3140.8,3.57935461]
[1768890309166,0.15932,3141.5,3140.3,3.57935461]
[1768890309368,0.00241551,3142.3,3140.3,3.57935461]
[1768890310068,0.16169551,3142.3,3140.3,3.57935461]
[1768890310274,0.00241551,3142.3,3140.3,3.57935461]
[1768890310471,0.15929,3141.9,3140.3,3.57935461]
[1768890311176,0.15929,3141.9,3140.4,40.8]
[1768890312183,0.00241551,3142.3,3140.5,3.57935461]
[1768890316372,0.00241551,3142.3,3140.1,0.00345685]
[1768890316373,0.00241551,3142.3,3140.7,3.57935461]
[1768890316579,0.00241551,3142.3,3140.9,3.57935461]
[1768890320671,0.16169551,3142.3,3140.9,3.57935461]
[1768890327583,0.00241551,3142.3,3140.9,3.57935461]
[1768890333685,1.12098667,3143.2,3141.0,3.54608021]
[1768890333883,0.87004299,3143.1,3141.1,3.54608021]
[1768890334091,0.87004299,3143.0,3141.1,3.54608021]
[1768890334292,0.15922,3143.3,3141.3,3.54608021]
[1768890334490,0.87010398,3143.2,3141.3,3.54608021]
[1768890334695,0.87010398,3143.1,3141.3,3.54608021]
[1768890334890,0.0035289,3143.2,3141.3,3.54608021]
[1768890335090,0.8712489,3143.1,3141.3,3.54608021]
[1768890335291,0.8712489,3143.0,3141.3,3.54608021]
[1768890335496,0.0035289,3143.2,3141.3,3.54608021]
[1768890335687,0.87144764,3143.1,3141.3,3.54608021]
[1768890335883,0.15923,3143.1,3141.3,3.54608021]
[1768890336187,0.87187816,3143.0,3141.3,3.54608021]
[1768890336389,0.0035289,3143.2,3141.3,3.54608021]
[1768890336687,0.87187998,3143.1,3141.3,3.54608021]
[1768890336991,0.87187998,3143.0,3141.5,3.54608021]
[1768890337182,0.1627589,3143.2,3141.5,3.54608021]
[1768890337383,0.87210325,3143.1,3141.5,3.54608021]
[1768890337584,0.87210325,3143.0,3141.5,3.54608021]
[1768890337883,0.1627589,3143.2,3141.5,3.54608021]
[1768890338080,0.87208655,3143.1,3141.5,3.54608021]
[1768890338285,0.87208655,3143.0,3141.5,3.54608021]
[1768890338495,0.1627589,3143.2,3141.5,3.54608021]
[1768890338693,0.87187173,3143.1,3141.5,3.54608021]
[1768890338895,0.1627589,3143.2,3141.5,3.54608021]
[1768890338896,0.87187173,3143.0,3141.5,3.54608021]
[1768890339100,0.1627589,3143.2,3141.5,3.54608021]
[1768890339392,0.87170926,3143.1,3141.5,3.54608021]
[1768890339597,0.87170926,3143.0,3141.5,3.54608021]
[1768890339897,0.1627589,3143.2,3141.5,3.54608021]
[1768890340095,0.87170265,3143.1,3141.5,3.54608021]
[1768890340297,0.1627589,3143.2,3141.5,3.54608021]
[1768890340488,0.87163055,3143.1,3141.5,3.54608021]
[1768890340684,3.53918505,3142.9,3140.5,3.54608021]
[1768890340887,4.66017172,3142.7,3140.6,3.54608021]
[1768890341101,0.87163055,3142.6,3140.6,3.54608021]
[1768890341296,0.87163055,3142.5,3140.6,3.54608021]
[1768890341600,1.03090055,3142.4,3140.6,3.54608021]
[1768890341801,0.87163055,3142.3,3140.6,3.54608021]
[1768890342092,0.87163055,3142.2,3140.6,3.54608021]
[1768890342292,0.15927,3142.4,3140.6,3.54608021]
[1768890342485,0.87150955,3142.3,3140.6,3.54608021]
[1768890342687,0.87150955,3142.2,3140.6,3.54608021]
[1768890342882,0.15927,3142.4,3140.6,3.54608021]
[1768890343096,0.87151167,3142.3,3140.6,3.54608021]
[1768890343290,0.87151167,3142.2,3140.6,3.54608021]
[1768890343490,0.15927,3142.4,3140.6,3.54608021]
[1768890343690,0.87151254,3142.3,3140.6,3.54608021]
[1768890343889,0.87151254,3142.2,3140.6,3.54608021]
[1768890344090,0.15927,3142.4,3140.6,3.54608021]
[1768890344293,0.87153483,3142.3,3140.6,3.54608021]
[1768890344595,0.87153483,3142.2,3140.6,3.54608021]
[1768890344795,0.15927,3142.4,3140.6,3.54608021]
[1768890344996,0.87153985,3142.3,3140.6,3.54608021]
[1768890345196,0.87153985,3142.2,3140.6,3.54608021]
[1768890345396,0.15927,3142.4,3140.6,3.54608021]
[1768890345598,0.87155175,3142.3,3140.6,3.54608021]
[1768890345797,0.15927,3142.4,3140.6,3.54608021]
[1768890346102,0.87153764,3142.3,3140.6,3.54608021]
[1768890346401,0.15927,3142.4,3140.6,3.54608021]
[1768890346617,0.87153014,3142.3,3140.6,3.54608021]
[1768890346805,0.15927,3142.4,3140.8,3.39142141]
[1768890347002,0.87156607,3142.3,3140.8,3.39142141]
[1768890347207,1.12098667,3142.8,3140.8,3.39142141]
[1768890347394,0.87166461,3142.7,3140.8,3.39142141]
[1768890347594,1.28022667,3143.1,3140.8,3.39142141]
[1768890347794,0.87166617,3143.0,3140.8,3.39142141]
[1768890348100,1.28022667,3143.1,3140.8,3.39142141]
[1768890348101,0.87166617,3142.9,3140.8,3.39142141]
[1768890348294,0.87166617,3142.8,3140.8,3.39142141]
[1768890348494,0.87166617,3142.7,3140.8,3.39142141]
[1768890348694,1.28022667,3143.1,3140.8,3.39142141]
[1768890348905,0.8717311,3143.0,3140.8,3.39142141]
[1768890349206,0.8717311,3142.9,3141.0,3.39142141]
[1768890349400,0.8717311,3142.8,3141.0,3.39142141]
[1768890349601,0.15924,3143.1,3141.2,3.39142141]
[1768890349794,0.87170814,3143.0,3141.2,3.39142141]
[1768890349995,0.87170814,3142.9,3141.2,3.39142141]
[1768890350196,0.87170814,3142.8,3141.2,3.39142141]
[1768890350396,0.15924,3143.1,3141.2,3.39142141]
[1768890350595,1.03092107,3143.0,3141.2,3.39142141]
[1768890350895,0.87168107,3142.9,3141.2,7.51142141]
[1768890351094,0.87168107,3142.9,3141.3,3.39142141]
[1768890351891,4.44321636,3142.8,3140.9,4.119]
[1768890352105,1.12098667,3142.9,3140.9,3.39142141]
[1768890352106,4.44321636,3142.7,3140.9,3.39142141]
[1768890352304,0.15927,3142.5,3140.9,3.39142141]
[1768890352702,0.87161125,3142.4,3140.9,3.39142141]
[1768890352905,0.8715627,3142.3,3140.9,3.39142141]
[1768890353106,0.8715627,3142.2,3140.6,44.919]
[1768890353296,4.57645393,3142.6,3140.6,48.36996421]
[1768890353497,0.87149038,3142.5,3140.6,48.36996421]
[1768890353803,4.32695764,3142.4,3140.6,7.56996421]
[1768890354000,4.32695764,3142.3,3140.6,7.56996421]
[1768890354200,3.45546726,3142.1,3140.1,0.00345685]
[1768890354405,0.15931,3141.5,3140.1,0.00345685]
[1768890354606,0.15933,3141.3,3140.1,0.00345685]
[1768890354804,3.45546726,3141.1,3139.3,4.12]
[1768890355109,0.87149038,3141.0,3139.4,40.8]
[1768890355310,0.87149038,3140.9,3139.4,40.8]
[1768890355503,3.45546726,3141.1,3139.4,40.8]
[1768890355706,0.15935,3140.8,3139.4,40.80317854]
[1768890360208,0.15936,3140.6,3139.4,44.25414275]
[1768890361517,0.15936,3140.6,3139.5,3.45096421]
[1768890362217,0.00246759,3141.1,3139.5,3.45096421]
[1768890362718,0.00246759,3141.1,3139.7,3.45096421]
[1768890364116,0.15933,3141.3,3139.7,3.45096421]
[1768890364414,0.15933,3141.3,3139.8,4.83874674]
[1768890364725,3.45546726,3142.5,3139.9,3.45096421]
[1768890365020,6.08098667,3142.6,3139.8,1.38778253]
[1768890365021,0.1593,3141.7,3140.1,3.45096421]
[1768890365215,0.15927,3142.3,3140.6,3.45096421]
[1768890365421,0.15927,3142.3,3140.8,3.45096421]
[1768890366417,0.16275701,3142.3,3140.8,3.45096421]
[1768890367214,0.15928,3142.2,3140.8,3.45096421]
[1768890368120,0.15928,3142.2,3140.9,44.25096421]
[1768890368320,0.15928,3142.1,3140.9,44.25096421]
[1768890368913,0.15928,3142.1,3140.9,40.8]
[1768890369121,0.15929,3141.9,3140.4,3.45096421]
[1768890369317,0.00348701,3142.3,3140.4,3.45096421]
[1768890370024,0.00348701,3142.3,3140.6,3.45096421]
[1768890370525,0.00348701,3142.3,3140.7,4.133]
[1768890370914,0.00348701,3142.3,3140.6,3.45096421]
[1768890371115,0.16275701,3142.3,3140.6,3.45096421]
[1768890371926,0.15929,3141.9,3139.8,3.45096421]
[1768890372120,0.15929,3141.9,3139.9,7.58296421]
[1768890372422,0.15929,3141.9,3140.0,3.45096421]
[1768890372927,0.15931,3141.7,3140.0,3.45096421]
[1768890373612,3.45546726,3141.7,3138.9,2.48973577]
[1768890373816,0.15942,3139.4,3137.5,3.55096421]
[1768890374129,0.15942,3139.4,3137.6,44.25096421]
[1768890374622,0.00234431,3139.4,3137.6,44.25463347]
[1768890374820,4.32234651,3139.3,3137.6,40.80366926]
[1768890375025,4.32234651,3139.3,3137.6,0.00366926]
[1768890375026,3.45546726,3139.1,3137.6,0.00366926]
[1768890375216,3.61491726,3138.9,3137.6,0.00366926]
[1768890376126,0.15945,3138.8,3137.6,0.00366926]
[1768890376328,3.61491726,3138.8,3137.6,0.00366926]
[1768890376516,1.64703116,3139.3,3137.5,0.1]
[1768890376517,0.15948,3138.3,3137.5,0.1]
[1768890376829,0.15948,3138.3,3136.7,40.8]
[1768890377519,0.15948,3138.3,3136.7,40.80322153]
[1768890378124,0.15948,3138.3,3136.8,3.45096421]
[1768890383721,0.15944,3139.1,3136.8,3.45096421]
[1768890384423,0.15944,3139.1,3137.0,3.28967237]
[1768890384626,0.15944,3139.1,3137.2,3.28967237]
[1768890385131,0.15944,3139.0,3137.2,3.28967237]
[1768890386028,0.15944,3139.0,3137.4,3.28967237]
[1768890386934,3.189,3140.3,3137.5,4.13386403]
[1768890387235,0.1594,3139.8,3137.6,3.28967237]
[1768890387441,0.15941,3139.7,3137.6,3.28967237]
[1768890387641,0.15941,3139.7,3137.8,3.28967237]
[1768890388441,0.15941,3139.7,3138.0,3.28967237]
[1768890388739,0.15938,3140.3,3138.2,3.28967237]
[1768890389342,0.16343833,3140.3,3138.2,3.28967237]
[1768890389731,0.00405833,3140.3,3138.4,3.28967237]
[1768890390048,0.15934,3141.0,3138.6,3.28967237]
[1768890390545,0.15934,3141.0,3138.8,3.28967237]
[1768890390741,0.1593,3141.8,3138.9,0.15944]
[1768890390942,0.1593,3141.8,3139.0,3.28967237]
[1768890391152,0.15931,3141.7,3139.2,3.28967237]
[1768890391449,0.15931,3141.6,3139.4,3.28967237]
[1768890391642,0.15933,3141.3,3139.4,3.28967237]
[1768890391840,0.15933,3141.3,3139.6,3.28967237]
[1768890392944,0.00371553,3141.8,3139.5,40.8]
[1768890392945,0.00371553,3141.8,3139.8,3.28967237]
[1768890393344,0.00371553,3141.8,3140.0,3.28967237]
[1768890393952,0.15931,3141.6,3140.0,3.28967237]
[1768890394548,0.15932,3141.4,3140.0,3.28967237]
[1768890396351,0.00371553,3141.8,3140.0,3.28967237]
[1768890397246,0.00371553,3141.8,3140.2,3.28967237]
[1768890398265,0.15927,3142.4,3140.2,3.28967237]
[1768890398448,0.15927,3142.4,3140.4,3.28967237]
[1768890399549,0.16329653,3142.4,3140.4,3.28967237]
[1768890400252,0.15928,3142.3,3140.4,3.28967237]
[1768890400951,0.15928,3142.2,3140.4,3.28967237]
[1768890402854,0.00402653,3142.4,3140.6,3.46720781]
[1768890403055,0.00402653,3142.4,3140.8,3.46720781]
[1768890404350,0.15925,3142.8,3141.0,3.46720781]
[1768890405146,0.16199627,3142.8,3141.0,3.46720781]
[1768890406760,0.15926,3142.7,3141.0,3.46720781]
[1768890407055,0.15926,3142.5,3141.0,3.46720781]
[1768890407259,0.00274627,3142.8,3141.0,3.46720781]
[1768890408356,0.00274627,3142.8,3140.7,3.427]
[1768890408357,0.00274627,3142.8,3141.2,3.46720781]
[1768890408556,0.00274627,3142.8,3141.2,3.47072442]
[1768890409358,0.15923,3143.2,3141.2,3.47072442]
[1768890409567,0.1592,3143.7,3141.6,3.46720781]
[1768890409859,0.1592,3143.7,3141.8,3.46720781]
[1768890410460,0.16230587,3143.7,3141.8,3.46720781]
[1768890413861,0.16230587,3143.7,3142.0,3.55561992]
[1768890418958,3.58016914,3143.7,3141.5,3.55561992]
[1768890419160,0.86912165,3143.6,3141.5,3.55561992]
[1768890419467,0.15923,3143.1,3141.6,3.55561992]
[1768890420255,3.57706327,3143.6,3141.6,3.55561992]
[1768890420455,3.57706327,3143.6,3139.8,2.82757624]
[1768890420456,3.57706327,3142.9,3140.1,3.55561992]
[1768890420657,0.15929,3142.0,3140.1,3.55561992]
[1768890420866,0.15929,3142.0,3140.3,3.55561992]
[1768890421365,4.30598667,3142.9,3139.5,3.55561992]
[1768890421366,0.15931,3141.5,3139.5,3.55561992]
[1768890421554,0.1625039,3141.5,3139.7,3.55561992]
[1768890421761,0.1625039,3141.5,3139.8,44.35561992]
[1768890422058,0.1625039,3141.5,3139.9,3.55561992]
[1768890425473,0.15932,3141.4,3140.0,7.70661992]
[1768890426474,0.15932,3141.4,3140.1,3.55561992]
[1768890426968,0.15934,3141.1,3140.1,3.55561992]
[1768890428967,0.0031939,3141.5,3140.1,3.55561992]
[1768890431969,1.12098667,3142.8,3140.3,3.55561992]
[1768890432272,0.86967206,3142.7,3140.3,3.55561992]
[1768890432466,0.86967206,3142.6,3140.3,3.55561992]
[1768890432668,0.15927,3142.3,3140.3,3.55561992]
[1768890432975,0.16171467,3142.3,3140.5,3.55561992]
[1768890433176,0.16171467,3142.3,3140.7,3.55561992]
[1768890433373,0.16171467,3142.3,3140.9,3.55561992]
[1768890434576,0.00244467,3142.3,3140.9,3.55561992]
[1768890436274,0.15924,3143.0,3140.9,3.55561992]
[1768890436673,0.15924,3143.0,3141.1,3.55561992]
[1768890437075,0.15924,3143.0,3141.3,3.55561992]
[1768890437376,0.00375147,3143.0,3141.3,3.55561992]
[1768890438574,0.00375147,3143.0,3141.5,3.55561992]
[1768890438776,0.00375147,3143.0,3141.7,3.55561992]
[1768890438977,0.00375147,3143.0,3141.7,3.55827959]
[1768890439880,0.15926,3142.7,3141.7,0.00265967]
[1768890441779,0.00375147,3143.0,3141.7,3.55827959]
[1768890442282,0.00375147,3143.0,3141.8,44.35561992]
[1768890442483,0.15922,3143.3,3141.9,3.55561992]
[1768890442779,0.15922,3143.3,3141.8,44.956]
[1768890443185,0.15922,3143.3,3141.8,48.49774248]
[1768890443490,0.16321934,3143.3,3141.8,48.49774248]
[1768890444275,0.16321934,3143.3,3141.9,3.54174248]
[1768890444475,0.15923,3143.2,3141.9,3.54174248]
[1768890446983,0.15923,3143.1,3141.9,3.54174248]
[1768890448886,0.00399934,3143.3,3141.9,3.54174248]
[1768890448887,0.15924,3143.0,3141.9,3.54174248]
[1768890449080,0.15926,3142.6,3141.7,0.00265967]
[1768890450905,0.15926,3142.6,3141.7,3.54440215]
[1768890452682,0.00399934,3143.3,3141.7,3.54440215]
[1768890453387,0.15926,3142.6,3141.7,3.54440215]
[1768890453794,0.00399934,3143.3,3141.7,3.54440215]
[1768890453990,0.15926,3142.6,3141.7,3.54440215]
[1768890454586,0.15928,3142.3,3140.1,2.98695624]
[1768890454783,0.15928,3142.3,3140.2,7.354]
[1768890454984,0.15928,3142.3,3140.2,15.00106991]
[1768890455291,0.15928,3142.3,3140.3,44.14737]
[1768890455490,0.15928,3142.3,3140.4,0.15937]
[1768890455685,0.15928,3142.3,3140.4,4.24567882]
[1768890456795,0.15928,3142.3,3140.5,3.54174248]
[1768890457191,0.15928,3142.3,3140.7,3.54174248]
[1768890457589,0.15928,3142.3,3140.9,3.54174248]
[1768890457896,0.15928,3142.3,3141.1,3.54174248]
[1768890459112,0.15925,3142.9,3141.1,3.54174248]
[1768890459406,0.87151116,3142.8,3141.1,3.54174248]
[1768890459607,0.15925,3142.9,3141.1,3.54174248]
[1768890459807,0.87159655,3142.8,3141.1,3.54174248]
[1768890460002,0.15925,3142.9,3141.1,3.54174248]
[1768890460209,0.87159749,3142.8,3141.1,3.54174248]
[1768890460409,0.15925,3142.9,3141.1,3.54174248]
[1768890460604,0.87201697,3142.8,3141.3,3.54174248]
[1768890460801,0.15925,3142.9,3141.3,3.54174248]
[1768890461108,0.87201634,3142.8,3141.3,3.54174248]
[1768890461310,0.87201634,3142.7,3141.3,3.54174248]
[1768890461609,0.15925,3142.9,3141.3,3.54174248]
[1768890461807,0.87252128,3142.8,3141.3,3.54174248]
[1768890462009,0.87252128,3142.7,3141.3,3.54174248]
[1768890462206,0.15925,3142.9,3141.3,3.54174248]
[1768890463910,0.15925,3142.9,3141.5,3.49124556]
[1768890464805,0.00399934,3143.3,3141.5,3.49124556]
[1768890465107,0.87308656,3143.2,3141.5,3.49124556]
[1768890465309,0.87308656,3143.1,3141.5,3.49124556]
[1768890465509,0.00399934,3143.3,3141.5,3.49124556]
[1768890465807,0.87308892,3143.2,3141.5,3.49124556]
[1768890466005,0.87308892,3143.1,3141.7,3.49124556]
[1768890466207,0.00399934,3143.3,3141.7,3.49124556]
[1768890466410,0.87305468,3143.2,3141.7,3.49124556]
[1768890466604,0.87305468,3143.1,3141.7,3.49124556]
[1768890466913,0.16321934,3143.3,3141.7,3.49124556]
[1768890467212,0.87302612,3143.2,3141.7,3.49124556]
[1768890467412,0.87302612,3143.1,3141.7,3.49124556]
[1768890467612,0.16321934,3143.3,3141.7,3.49124556]
[1768890467814,0.87273362,3143.2,3141.7,3.49124556]
[1768890468110,0.87273362,3143.1,3141.7,3.49124556]
[1768890468409,0.16321934,3143.3,3141.7,3.49124556]
[1768890468611,0.87274111,3143.2,3141.7,3.49124556]
[1768890468810,0.87274111,3143.1,3141.7,3.49124556]
[1768890469015,0.16321934,3143.3,3141.7,3.49124556]
[1768890469210,0.87274263,3143.2,3141.7,3.49124556]
[1768890469411,0.87274263,3143.1,3141.7,3.49124556]
[1768890469612,0.16321934,3143.3,3141.7,3.49124556]
[1768890469812,0.8727308,3143.2,3141.7,3.49124556]
[1768890470109,0.8727308,3143.1,3141.7,3.49124556]
[1768890470315,0.16321934,3143.3,3141.7,3.49124556]
[1768890470516,0.87273026,3143.2,3141.7,3.49124556]
[1768890470815,0.87273026,3143.1,3141.7,3.49124556]
[1768890471012,0.16321934,3143.3,3141.7,3.49124556]
[1768890471310,0.87271381,3143.2,3141.7,3.49124556]
[1768890471509,0.87271381,3143.1,3141.7,3.49124556]
[1768890473911,1.12098667,3143.5,3141.7,3.49124556]
[1768890474117,3.60202051,3145.0,3142.6,3.30259582]
[1768890474410,4.58594739,3146.1,3142.6,3.30259582]
[1768890474411,3.76119051,3144.4,3142.7,48.178]
[1768890475006,3.76362042,3144.4,3142.7,48.18114775]
[1768890475511,3.76362042,3144.4,3142.8,3.30259582]
[1768890475512,0.16159991,3144.4,3142.8,3.30259582]
[1768890477011,0.00242991,3144.4,3142.8,3.30259582]
[1768890480017,0.00242991,3144.4,3142.9,40.8]
[1768890480220,0.00242991,3144.4,3143.0,3.30259582]
[1768890480604,0.00242991,3144.4,3141.8,2.82757624]
[1768890480605,3.60445042,3144.4,3141.8,2.82757624]
[1768890480812,3.60202051,3143.9,3141.9,3.147]
[1768890481015,3.60445042,3144.4,3142.0,3.30259582]
[1768890481309,3.60445042,3144.4,3142.2,3.30259582]
[1768890481821,3.60445042,3144.4,3142.2,3.46563172]
[1768890485526,0.00242991,3144.4,3142.4,3.30259582]
[1768890485720,0.00242991,3144.4,3142.6,3.30259582]
[1768890486720,0.00242991,3144.4,3142.8,3.30259582]
[1768890490520,0.00242991,3144.4,3142.8,3.46184582]
[1768890491413,0.15913,3145.1,3143.0,3.30259582]
[1768890491720,0.15913,3145.1,3143.2,3.30259582]
[1768890492219,0.15913,3145.1,3143.4,3.30259582]
[1768890492420,0.16200458,3145.1,3143.4,3.30259582]
[1768890494519,0.00287458,3145.1,3143.4,3.30259582]
[1768890495528,0.00287458,3145.1,3143.6,3.30259582]
[1768890497430,0.00287458,3145.1,3143.7,4.231]
[1768890497633,0.00287458,3145.1,3143.8,40.8]
[1768890497929,0.00287458,3145.1,3143.7,4.231]
[1768890498131,0.00287458,3145.1,3143.6,3.30259582]
[1768890498318,0.00287458,3145.1,3143.7,3.119]
[1768890499027,0.00287458,3145.1,3143.8,40.8]
[1768890500429,0.00287458,3145.1,3143.8,44.10259582]
[1768890501125,0.00287458,3145.1,3143.9,3.30259582]
[1768890502826,0.00287458,3145.1,3143.9,4.19359075]
[1768890503132,0.00287458,3145.1,3144.0,3.46336245]
[1768890503925,0.89099493,3145.0,3143.8,40.8]
[1768890504125,0.89099493,3144.9,3143.9,4.24]
[1768890504830,0.89099493,3144.9,3144.0,4.241]
[1768890505125,0.89386951,3145.1,3144.0,4.241]
[1768890505633,0.00287458,3145.1,3144.0,4.241]
[1768890510042,0.89099493,3144.9,3144.0,4.241]
[1768890510230,0.89099493,3144.6,3143.2,3.46336245]
[1768890510433,0.89099493,3144.6,3143.3,4.247]
[1768890510633,0.89099493,3144.6,3143.3,45.047]
[1768890511027,0.15914,3145.0,3143.4,3.46336245]
[1768890511228,1.05013493,3145.0,3143.4,3.46336245]
[1768890511428,0.15914,3145.0,3143.6,3.46336245]
[1768890512537,0.89386951,3145.1,3143.6,3.46336245]
[1768890512742,0.00287458,3145.1,3143.9,3.46336245]
[1768890512941,0.00287458,3145.1,3144.1,4.35435738]
[1768890513134,0.00287458,3145.1,3144.2,7.71336245]
[1768890515636,0.00287458,3145.1,3144.2,4.25]
[1768890516039,0.00287458,3145.1,3144.2,7.71336245]
[1768890516242,1.12565777,3145.9,3144.3,3.46336245]
[1768890516243,0.89099493,3145.5,3144.3,3.46336245]
[1768890516438,0.89099493,3145.5,3144.2,4.25]
[1768890516639,4.4676782,3146.0,3143.5,3.46336245]
[1768890516640,0.89099493,3144.9,3143.5,3.46336245]
[1768890516841,3.57668327,3145.7,3143.6,7.70936245]
[1768890517044,3.57668327,3145.5,3143.6,7.70936245]
[1768890517342,3.57668327,3145.3,3143.3,7.429]
[1768890517547,0.15914,3144.9,3143.4,3.46336245]
[1768890518051,0.15914,3144.9,3143.5,3.46336245]
[1768890519149,0.10034,3144.9,3143.5,3.46336245]
[1768890519347,0.15915,3144.8,3143.5,3.46336245]
[1768890520040,0.15916,3144.6,3143.5,3.46336245]
[1768890520446,0.15916,3144.5,3143.5,4.247]
[1768890523446,0.15916,3144.5,3143.1,40.8]
[1768890523748,4.36177051,3144.4,3142.8,3.61105744]
[1768890524047,3.51385101,3144.4,3142.8,3.61105744]
[1768890524946,0.15917,3144.3,3142.8,3.61105744]
[1768890525342,3.35468101,3144.4,3142.8,3.61105744]
[1768890526049,0.15918,3144.1,3142.8,3.61105744]
[1768890526253,0.15919,3144.0,3142.8,3.61105744]
[1768890527448,0.15919,3143.9,3142.8,3.61105744]
[1768890531457,0.1592,3143.8,3142.8,3.61105744]
[1768890533663,0.15922,3143.5,3142.2,3.30613523]
[1768890533860,0.15922,3143.5,3142.3,4.258]
[1768890534153,0.15922,3143.5,3142.4,45.058]
[1768890534860,0.15922,3143.5,3142.4,4.258]
[1768890535054,0.15922,3143.5,3142.3,3.30237933]
[1768890535253,0.15922,3143.5,3142.4,4.259]
[1768890535548,0.15922,3143.4,3142.4,4.259]
[1768890538060,0.15922,3143.4,3142.3,3.30237933]
[1768890538251,0.15922,3143.4,3142.4,4.264]
[1768890539558,0.15922,3143.4,3142.5,3.30237933]
[1768890545256,4.61646894,3144.9,3142.5,3.30237933]
[1768890545460,0.15919,3144.0,3142.5,3.30237933]
[1768890546458,0.15919,3143.9,3142.5,3.30237933]
[1768890547662,4.61646894,3144.7,3142.5,3.30237933]
[1768890547663,0.1592,3143.8,3142.5,3.30237933]
[1768890551066,1.12706075,3144.7,3142.5,3.30237933]
[1768890551067,0.15917,3144.5,3142.5,3.30237933]
[1768890551263,0.84781215,3144.4,3142.5,3.30237933]
[1768890551467,0.84781215,3144.3,3142.5,3.30237933]
[1768890551767,0.84781215,3144.2,3142.5,3.30237933]
[1768890551971,0.15917,3144.5,3142.5,3.30237933]
[1768890552168,0.84781829,3144.4,3142.5,3.30237933]
[1768890552366,0.15917,3144.5,3142.5,3.30237933]
[1768890552571,0.84816255,3144.4,3142.5,3.30237933]
[1768890552868,0.15917,3144.5,3142.5,3.30237933]
[1768890553073,0.84816006,3144.4,3142.5,3.30237933]
[1768890553275,0.84816006,3144.3,3142.5,3.30237933]
[1768890553466,0.15917,3144.5,3142.5,3.30237933]
[1768890553666,0.84842369,3144.4,3142.5,3.30237933]
[1768890553876,0.84842369,3144.3,3142.5,3.30237933]
[1768890554170,0.15917,3144.5,3142.5,3.30237933]
[1768890554375,0.84834864,3144.4,3142.5,3.30237933]
[1768890554578,0.15917,3144.5,3142.5,3.30237933]
[1768890554875,0.15917,3144.5,3142.7,3.30237933]
[1768890557982,0.15917,3144.5,3142.8,3.30237933]
[1768890561977,3.64857819,3144.3,3142.8,3.30237933]
[1768890562175,3.64857819,3144.3,3142.9,4.282]
[1768890562176,4.54014114,3144.3,3142.9,4.282]
[1768890562376,3.64857819,3144.3,3142.9,4.282]
[1768890563190,0.15919,3144.0,3142.6,3.183]
[1768890563490,3.7388654,3144.0,3142.6,3.183]
[1768890564091,0.15919,3144.0,3142.6,3.183]
[1768890566996,0.15919,3143.9,3142.5,3.62762885]
[1768890567198,3.7388654,3143.9,3142.5,4.284]
[1768890569898,0.1592,3143.8,3142.5,4.284]
[1768890570501,0.1592,3143.7,3142.2,4.2907559]
[1768890570688,0.15921,3143.6,3142.2,4.2907559]
[1768890572700,0.15921,3143.6,3142.2,7.91838475]
[1768890574396,0.15921,3143.6,3142.3,3.62762885]
[1768890575895,0.15921,3143.6,3142.4,4.291]
[1768890576394,0.15921,3143.6,3142.4,7.91862885]
[1768890576597,0.15921,3143.6,3142.5,3.62762885]
[1768890578006,0.15918,3144.2,3142.5,3.62762885]
[1768890578207,1.0083482,3144.1,3142.5,3.62762885]
[1768890578502,0.15918,3144.1,3142.5,3.62762885]
[1768890581806,6.321,3144.4,3142.7,3.62762885]
[1768890583715,6.48017,3144.4,3142.7,3.62762885]
[1768890586307,0.15917,3144.4,3142.7,3.62762885]
[1768890586910,0.15917,3144.4,3143.1,4.31995675]
[1768890587213,0.15917,3144.4,3143.2,3.42843668]
[1768890587511,0.89152007,3144.7,3143.2,3.42843668]
[1768890587714,0.8495369,3144.6,3143.2,3.42843668]
[1768890587908,0.89152007,3144.7,3143.2,3.42843668]
[1768890588109,0.84953795,3144.6,3143.2,3.42843668]
[1768890588415,0.15914,3145.0,3143.4,4.31995675]
[1768890588615,0.84963211,3144.9,3143.4,4.31995675]
[1768890588808,1.74115218,3144.8,3143.4,4.31995675]
[1768890589010,0.84963211,3144.7,3143.4,3.42843668]
[1768890589207,4.66639032,3145.1,3143.4,3.42843668]
[1768890589208,3.69846957,3144.9,3143.4,3.42843668]
[1768890589409,0.89152007,3144.6,3143.0,4.31995675]
[1768890590009,0.89152007,3144.6,3143.0,45.11995675]
[1768890591015,0.89152007,3144.5,3143.0,45.11995675]
[1768890591413,0.89152007,3144.5,3143.0,4.31995675]
[1768890591906,0.89152007,3144.5,3143.0,3.42843668]
[1768890592308,3.53932957,3144.6,3143.0,3.42843668]
[1768890592512,0.89152007,3144.4,3143.0,3.42843668]
[1768890594609,4.4708064,3144.4,3142.7,40.8]
[1768890594809,4.4708064,3144.4,3142.7,48.66326547]
[1768890595815,4.4708064,3144.4,3142.8,3.56726547]
[1768890596211,0.89152007,3144.1,3142.8,3.56726547]
[1768890596414,0.15918,3144.2,3142.8,3.56726547]
[1768890596715,0.89152007,3143.9,3142.7,4.296]
[1768890597831,0.89152007,3144.0,3142.7,4.296]
[1768890598814,0.89152007,3143.7,3142.7,4.296]
[1768890599117,0.89152007,3143.8,3142.7,4.296]
[1768890599315,0.89152007,3143.5,3142.4,3.56726547]
[1768890599514,0.89152007,3143.7,3142.4,3.56726547]
[1768890599715,0.89152007,3143.4,3142.2,4.3047559]
[1768890600119,0.89152007,3143.4,3142.2,0.0037559]
[1768890600120,0.89152007,3143.1,3142.2,0.0037559]
[1768890600419,0.89152007,3143.1,3141.6,3.56726547]
[1768890600420,0.89152007,3142.5,3141.6,3.56726547]
[1768890600608,0.16180217,3143.1,3141.9,3.56726547]
[1768890600812,0.00257217,3143.1,3142.2,0.89152007]
[1768890601025,0.00257217,3143.1,3141.9,4.45878554]
[1768890601413,0.00257217,3143.1,3141.9,4.46250532]
[1768890601618,0.00257217,3143.1,3141.9,3.57098525]
[1768890603516,0.89152007,3143.0,3141.9,3.57098525]
[1768890603725,0.00257217,3143.1,3141.9,0.00371978]
[1768890603929,0.89152007,3142.8,3141.9,0.00371978]